Workbook

Sheet Type
A1: CALCULATING TRIGONOMETRIC FUNCTIONS
C2: INSTRUCTIONS
B4: Step 1 | C4: Select desired operation with integers
I6: PRESS F9 for NEW WorkSheet
B10: Step 2 | C10: Select degrees OR degrees and minutes
B15: Step 3 | C15: Click on Select tab below to choose different WorkSheet.
B16: Note | C16: If you click on the WorkSheet tab then hold down shift and click on the Solutions tab, you will be able to print both the WorkSheet and the solutions.

Sheet WorkSheet
I1: Trigonometric Functions
M2: =CONCATENATE("Worksheet ",Working!E1,Working!D1) -> Worksheet TRI-554
A3: Evaluate the following; correct to 3 decimal places.
A4: =CONCATENATE(Working!A3,")") -> 1) | C4: =IF(Working!$B3=0,Working!$S3,Working!$U3) -> 3sin15° | E4: =CONCATENATE(Working!A13,")") -> 11) | G4: =IF(Working!$B13=0,Working!$S13,Working!$U13) -> 7cos26° | I4: =CONCATENATE(Working!A23,")") -> 21) | K4: =IF(Working!$B23=0,Working!$S23,Working!$U23) -> 34cos66° | M4: =CONCATENATE(Working!A33,")") -> 31) | O4: =IF(Working!$B33=0,Working!$S33,Working!$U33) -> 24tan10°
C5: =IF(Working!$B3=0,Working!$T3,Working!$V3) ->  | G5: =IF(Working!$B13=0,Working!$T13,Working!$V13) ->  | K5: =IF(Working!$B23=0,Working!$T23,Working!$V23) -> 2 | O5: =IF(Working!$B33=0,Working!$T33,Working!$V33) -> 4
B6: = | F6: = | J6: = | N6: =
A7: =CONCATENATE(Working!A4,")") -> 2) | C7: =IF(Working!B4=0,Working!$S4,Working!$U4) -> 14tan28° | E7: =CONCATENATE(Working!A14,")") -> 12) | G7: =IF(Working!$B14=0,Working!$S14,Working!$U14) -> 11tan37° | I7: =CONCATENATE(Working!A24,")") -> 22) | K7: =IF(Working!$B24=0,Working!$S24,Working!$U24) -> 6cos81° | M7: =CONCATENATE(Working!A34,")") -> 32) | O7: =IF(Working!$B34=0,Working!$S34,Working!$U34) -> 29sin10°
C8: =IF(Working!B4=0,Working!$T4,Working!$V4) ->  | G8: =IF(Working!$B14=0,Working!$T14,Working!$V14) ->  | K8: =IF(Working!$B24=0,Working!$T24,Working!$V24) -> 13 | O8: =IF(Working!$B34=0,Working!$T34,Working!$V34) -> 16
B9: = | F9: = | J9: = | N9: =
A10: =CONCATENATE(Working!A5,")") -> 3) | C10: =IF(Working!B5=0,Working!$S5,Working!$U5) -> 15tan33° | E10: =CONCATENATE(Working!A15,")") -> 13) | G10: =IF(Working!$B15=0,Working!$S15,Working!$U15) -> 4tan69° | I10: =CONCATENATE(Working!A25,")") -> 23) | K10: =IF(Working!$B25=0,Working!$S25,Working!$U25) -> 10sin79° | M10: =CONCATENATE(Working!A35,")") -> 33) | O10: =IF(Working!$B35=0,Working!$S35,Working!$U35) -> 38sin40°
C11: =IF(Working!B5=0,Working!$T5,Working!$V5) ->  | G11: =IF(Working!$B15=0,Working!$T15,Working!$V15) ->  | K11: =IF(Working!$B25=0,Working!$T25,Working!$V25) -> 10 | O11: =IF(Working!$B35=0,Working!$T35,Working!$V35) -> 11
B12: = | F12: = | J12: = | N12: =
A13: =CONCATENATE(Working!A6,")") -> 4) | C13: =IF(Working!B6=0,Working!$S6,Working!$U6) -> 17sin57° | E13: =CONCATENATE(Working!A16,")") -> 14) | G13: =IF(Working!$B16=0,Working!$S16,Working!$U16) -> 17cos39° | I13: =CONCATENATE(Working!A26,")") -> 24) | K13: =IF(Working!$B26=0,Working!$S26,Working!$U26) -> 11tan77° | M13: =CONCATENATE(Working!A36,")") -> 34) | O13: =IF(Working!$B36=0,Working!$S36,Working!$U36) -> 27tan51°
C14: =IF(Working!B6=0,Working!$T6,Working!$V6) ->  | G14: =IF(Working!$B16=0,Working!$T16,Working!$V16) ->  | K14: =IF(Working!$B26=0,Working!$T26,Working!$V26) -> 10 | O14: =IF(Working!$B36=0,Working!$T36,Working!$V36) -> 10
B15: = | F15: = | J15: = | N15: =
A16: =CONCATENATE(Working!A7,")") -> 5) | C16: =IF(Working!B7=0,Working!$S7,Working!$U7) -> 4tan57° | E16: =CONCATENATE(Working!A17,")") -> 15) | G16: =IF(Working!$B17=0,Working!$S17,Working!$U17) -> 17sin31° | I16: =CONCATENATE(Working!A27,")") -> 25) | K16: =IF(Working!$B27=0,Working!$S27,Working!$U27) -> 19tan35° | M16: =CONCATENATE(Working!A37,")") -> 35) | O16: =IF(Working!$B37=0,Working!$S37,Working!$U37) -> 39tan47°
C17: =IF(Working!B7=0,Working!$T7,Working!$V7) ->  | G17: =IF(Working!$B17=0,Working!$T17,Working!$V17) ->  | K17: =IF(Working!$B27=0,Working!$T27,Working!$V27) -> 15 | O17: =IF(Working!$B37=0,Working!$T37,Working!$V37) -> 17
A19: =CONCATENATE(Working!A8,")") -> 6) | C19: =IF(Working!B8=0,Working!$S8,Working!$U8) -> 9sin24° | E19: =CONCATENATE(Working!A18,")") -> 16) | G19: =IF(Working!$B18=0,Working!$S18,Working!$U18) -> 11sin11° | I19: =CONCATENATE(Working!A28,")") -> 26) | K19: =IF(Working!$B28=0,Working!$S28,Working!$U28) -> 34cos69° | M19: =CONCATENATE(Working!A38,")") -> 36) | O19: =IF(Working!$B38=0,Working!$S38,Working!$U38) -> 37sin47°
C20: =IF(Working!B8=0,Working!$T8,Working!$V8) ->  | G20: =IF(Working!$B18=0,Working!$T18,Working!$V18) ->  | K20: =IF(Working!$B28=0,Working!$T28,Working!$V28) -> 7 | O20: =IF(Working!$B38=0,Working!$T38,Working!$V38) -> 5
B21: = | F21: = | J21: = | N21: =
A22: =CONCATENATE(Working!A9,")") -> 7) | C22: =IF(Working!B9=0,Working!$S9,Working!$U9) -> 11sin51° | E22: =CONCATENATE(Working!A19,")") -> 17) | G22: =IF(Working!$B19=0,Working!$S19,Working!$U19) -> 13sin43° | I22: =CONCATENATE(Working!A29,")") -> 27) | K22: =IF(Working!$B29=0,Working!$S29,Working!$U29) -> 6tan46° | M22: =CONCATENATE(Working!A39,")") -> 37) | O22: =IF(Working!$B39=0,Working!$S39,Working!$U39) -> 32tan56°
C23: =IF(Working!B9=0,Working!$T9,Working!$V9) ->  | G23: =IF(Working!$B19=0,Working!$T19,Working!$V19) ->  | K23: =IF(Working!$B29=0,Working!$T29,Working!$V29) -> 12 | O23: =IF(Working!$B39=0,Working!$T39,Working!$V39) -> 3
B24: = | F24: = | J24: = | N24: =
A25: =CONCATENATE(Working!A10,")") -> 8) | C25: =IF(Working!B10=0,Working!$S10,Working!$U10) -> 16cos58° | E25: =CONCATENATE(Working!A20,")") -> 18) | G25: =IF(Working!$B20=0,Working!$S20,Working!$U20) -> 14tan71° | I25: =CONCATENATE(Working!A30,")") -> 28) | K25: =IF(Working!$B30=0,Working!$S30,Working!$U30) -> 13tan15° | M25: =CONCATENATE(Working!A40,")") -> 38) | O25: =IF(Working!$B40=0,Working!$S40,Working!$U40) -> 8tan16°
C26: =IF(Working!B10=0,Working!$T10,Working!$V10) ->  | G26: =IF(Working!$B20=0,Working!$T20,Working!$V20) ->  | K26: =IF(Working!$B30=0,Working!$T30,Working!$V30) -> 12 | O26: =IF(Working!$B40=0,Working!$T40,Working!$V40) -> 3
B27: = | F27: = | J27: = | N27: =
A28: =CONCATENATE(Working!A11,")") -> 9) | C28: =IF(Working!B11=0,Working!$S11,Working!$U11) -> 10cos43° | E28: =CONCATENATE(Working!A21,")") -> 19) | G28: =IF(Working!$B21=0,Working!$S21,Working!$U21) -> 11cos28° | I28: =CONCATENATE(Working!A31,")") -> 29) | K28: =IF(Working!$B31=0,Working!$S31,Working!$U31) -> 34tan81° | M28: =CONCATENATE(Working!A41,")") -> 39) | O28: =IF(Working!$B41=0,Working!$S41,Working!$U41) -> 14tan83°
C29: =IF(Working!B11=0,Working!$T11,Working!$V11) ->  | G29: =IF(Working!$B21=0,Working!$T21,Working!$V21) ->  | K29: =IF(Working!$B31=0,Working!$T31,Working!$V31) -> 10 | O29: =IF(Working!$B41=0,Working!$T41,Working!$V41) -> 19
B30: = | F30: = | J30: = | N30: =
A31: =CONCATENATE(Working!A12,")") -> 10) | C31: =IF(Working!B12=0,Working!$S12,Working!$U12) -> 13cos31° | E31: =CONCATENATE(Working!A22,")") -> 20) | G31: =IF(Working!$B22=0,Working!$S22,Working!$U22) -> 9cos80° | I31: =CONCATENATE(Working!A32,")") -> 30) | K31: =IF(Working!$B32=0,Working!$S32,Working!$U32) -> 12tan46° | M31: =CONCATENATE(Working!A42,")") -> 40) | O31: =IF(Working!$B42=0,Working!$S42,Working!$U42) -> 3tan38°
C32: =IF(Working!B12=0,Working!$T12,Working!$V12) ->  | G32: =IF(Working!$B22=0,Working!$T22,Working!$V22) ->  | K32: =IF(Working!$B32=0,Working!$T32,Working!$V32) -> 13 | O32: =IF(Working!$B42=0,Working!$T42,Working!$V42) -> 16
B33: = | F33: = | J33: = | N33: =

Sheet Answers
I1: Trigonometric Functions
I2: SOLUTIONS | M2: =CONCATENATE("Worksheet ",Working!E1,Working!D1) -> Worksheet TRI-554
A3: Evaluate the following; correct to 3 decimal places.
A4: =CONCATENATE(Working!A3,")") -> 1) | C4: =IF(Working!$B3=0,Working!$S3,Working!$U3) -> 3sin15° | E4: =CONCATENATE(Working!A13,")") -> 11) | G4: =IF(Working!$B13=0,Working!$S13,Working!$U13) -> 7cos26° | I4: =CONCATENATE(Working!A23,")") -> 21) | K4: =IF(Working!$B23=0,Working!$S23,Working!$U23) -> 34cos66° | M4: =CONCATENATE(Working!A33,")") -> 31) | O4: =IF(Working!$B33=0,Working!$S33,Working!$U33) -> 24tan10°
C5: =IF(Working!$B3=0,Working!$T3,Working!$V3) ->  | G5: =IF(Working!$B13=0,Working!$T13,Working!$V13) ->  | K5: =IF(Working!$B23=0,Working!$T23,Working!$V23) -> 2 | O5: =IF(Working!$B33=0,Working!$T33,Working!$V33) -> 4
B6: = | C6: =IF(Working!$B3=0,Working!$O3,Working!$N3) -> 0.8143213496 | F6: = | G6: =IF(Working!$B13=0,Working!$O13,Working!$N13) -> 0.8949343616 | J6: = | K6: =IF(Working!$B23=0,Working!$O23,Working!$N23) -> 0.1957671358 | N6: = | O6: =IF(Working!$B33=0,Working!$O33,Working!$N33) -> 0.04731331297
A7: =CONCATENATE(Working!A4,")") -> 2) | C7: =IF(Working!B4=0,Working!$S4,Working!$U4) -> 14tan28° | E7: =CONCATENATE(Working!A14,")") -> 12) | G7: =IF(Working!$B14=0,Working!$S14,Working!$U14) -> 11tan37° | I7: =CONCATENATE(Working!A24,")") -> 22) | K7: =IF(Working!$B24=0,Working!$S24,Working!$U24) -> 6cos81° | M7: =CONCATENATE(Working!A34,")") -> 32) | O7: =IF(Working!$B34=0,Working!$S34,Working!$U34) -> 29sin10°
C8: =IF(Working!B4=0,Working!$T4,Working!$V4) ->  | G8: =IF(Working!$B14=0,Working!$T14,Working!$V14) ->  | K8: =IF(Working!$B24=0,Working!$T24,Working!$V24) -> 13 | O8: =IF(Working!$B34=0,Working!$T34,Working!$V34) -> 16
B9: = | C9: =IF(Working!B4=0,Working!$O4,Working!$N4) -> 0.5369445696 | F9: = | G9: =IF(Working!$B14=0,Working!$O14,Working!$N14) -> 0.7738175529 | J9: = | K9: =IF(Working!$B24=0,Working!$O24,Working!$N24) -> 0.01094930873 | N9: = | O9: =IF(Working!$B34=0,Working!$O34,Working!$N34) -> 0.01146121693
A10: =CONCATENATE(Working!A5,")") -> 3) | C10: =IF(Working!B5=0,Working!$S5,Working!$U5) -> 15tan33° | E10: =CONCATENATE(Working!A15,")") -> 13) | G10: =IF(Working!$B15=0,Working!$S15,Working!$U15) -> 4tan69° | I10: =CONCATENATE(Working!A25,")") -> 23) | K10: =IF(Working!$B25=0,Working!$S25,Working!$U25) -> 10sin79° | M10: =CONCATENATE(Working!A35,")") -> 33) | O10: =IF(Working!$B35=0,Working!$S35,Working!$U35) -> 38sin40°
C11: =IF(Working!B5=0,Working!$T5,Working!$V5) ->  | G11: =IF(Working!$B15=0,Working!$T15,Working!$V15) ->  | K11: =IF(Working!$B25=0,Working!$T25,Working!$V25) -> 10 | O11: =IF(Working!$B35=0,Working!$T35,Working!$V35) -> 11
B12: = | C12: =IF(Working!B5=0,Working!$O5,Working!$N5) -> 0.6719721129 | F12: = | G12: =IF(Working!$B15=0,Working!$O15,Working!$N15) -> 2.715482632 | J12: = | K12: =IF(Working!$B25=0,Working!$O25,Working!$N25) -> 0.09845541504 | N12: = | O12: =IF(Working!$B35=0,Working!$O35,Working!$N35) -> 0.05871835791
A13: =CONCATENATE(Working!A6,")") -> 4) | C13: =IF(Working!B6=0,Working!$S6,Working!$U6) -> 17sin57° | E13: =CONCATENATE(Working!A16,")") -> 14) | G13: =IF(Working!$B16=0,Working!$S16,Working!$U16) -> 17cos39° | I13: =CONCATENATE(Working!A26,")") -> 24) | K13: =IF(Working!$B26=0,Working!$S26,Working!$U26) -> 11tan77° | M13: =CONCATENATE(Working!A36,")") -> 34) | O13: =IF(Working!$B36=0,Working!$S36,Working!$U36) -> 27tan51°
C14: =IF(Working!B6=0,Working!$T6,Working!$V6) ->  | G14: =IF(Working!$B16=0,Working!$T16,Working!$V16) ->  | K14: =IF(Working!$B26=0,Working!$T26,Working!$V26) -> 10 | O14: =IF(Working!$B36=0,Working!$T36,Working!$V36) -> 10
B15: = | C15: =IF(Working!B6=0,Working!$O6,Working!$N6) -> 0.8441720241 | F15: = | G15: =IF(Working!$B16=0,Working!$O16,Working!$N16) -> 0.76623139 | J15: = | K15: =IF(Working!$B26=0,Working!$O26,Working!$N26) -> 0.4486000401 | N15: = | O15: =IF(Working!$B36=0,Working!$O36,Working!$N36) -> 0.1272295718
A16: =CONCATENATE(Working!A7,")") -> 5) | C16: =IF(Working!B7=0,Working!$S7,Working!$U7) -> 4tan57° | E16: =CONCATENATE(Working!A17,")") -> 15) | G16: =IF(Working!$B17=0,Working!$S17,Working!$U17) -> 17sin31° | I16: =CONCATENATE(Working!A27,")") -> 25) | K16: =IF(Working!$B27=0,Working!$S27,Working!$U27) -> 19tan35° | M16: =CONCATENATE(Working!A37,")") -> 35) | O16: =IF(Working!$B37=0,Working!$S37,Working!$U37) -> 39tan47°
C17: =IF(Working!B7=0,Working!$T7,Working!$V7) ->  | G17: =IF(Working!$B17=0,Working!$T17,Working!$V17) ->  | K17: =IF(Working!$B27=0,Working!$T27,Working!$V27) -> 15 | O17: =IF(Working!$B37=0,Working!$T37,Working!$V37) -> 17
C18: =IF(Working!B7=0,Working!$O7,Working!$N7) -> 1.585926124 | G18: =IF(Working!$B17=0,Working!$O17,Working!$N17) -> 0.5195191119 | K18: =IF(Working!$B27=0,Working!$O27,Working!$N27) -> 0.04828817893 | O18: =IF(Working!$B37=0,Working!$O37,Working!$N37) -> 0.06315413503
A19: =CONCATENATE(Working!A8,")") -> 6) | C19: =IF(Working!B8=0,Working!$S8,Working!$U8) -> 9sin24° | E19: =CONCATENATE(Working!A18,")") -> 16) | G19: =IF(Working!$B18=0,Working!$S18,Working!$U18) -> 11sin11° | I19: =CONCATENATE(Working!A28,")") -> 26) | K19: =IF(Working!$B28=0,Working!$S28,Working!$U28) -> 34cos69° | M19: =CONCATENATE(Working!A38,")") -> 36) | O19: =IF(Working!$B38=0,Working!$S38,Working!$U38) -> 37sin47°
C20: =IF(Working!B8=0,Working!$T8,Working!$V8) ->  | G20: =IF(Working!$B18=0,Working!$T18,Working!$V18) ->  | K20: =IF(Working!$B28=0,Working!$T28,Working!$V28) -> 7 | O20: =IF(Working!$B38=0,Working!$T38,Working!$V38) -> 5
B21: = | C21: =IF(Working!B8=0,Working!$O8,Working!$N8) -> 0.4207719471 | F21: = | G21: =IF(Working!$B18=0,Working!$O18,Working!$N18) -> 0.2013628595 | J21: = | K21: =IF(Working!$B28=0,Working!$O28,Working!$N28) -> 0.04893811092 | N21: = | O21: =IF(Working!$B38=0,Working!$O38,Working!$N38) -> 0.1483561581
A22: =CONCATENATE(Working!A9,")") -> 7) | C22: =IF(Working!B9=0,Working!$S9,Working!$U9) -> 11sin51° | E22: =CONCATENATE(Working!A19,")") -> 17) | G22: =IF(Working!$B19=0,Working!$S19,Working!$U19) -> 13sin43° | I22: =CONCATENATE(Working!A29,")") -> 27) | K22: =IF(Working!$B29=0,Working!$S29,Working!$U29) -> 6tan46° | M22: =CONCATENATE(Working!A39,")") -> 37) | O22: =IF(Working!$B39=0,Working!$S39,Working!$U39) -> 32tan56°
C23: =IF(Working!B9=0,Working!$T9,Working!$V9) ->  | G23: =IF(Working!$B19=0,Working!$T19,Working!$V19) ->  | K23: =IF(Working!$B29=0,Working!$T29,Working!$V29) -> 12 | O23: =IF(Working!$B39=0,Working!$T39,Working!$V39) -> 3
B24: = | C24: =IF(Working!B9=0,Working!$O9,Working!$N9) -> 0.7831511053 | F24: = | G24: =IF(Working!$B19=0,Working!$O19,Working!$N19) -> 0.6841228933 | J24: = | K24: =IF(Working!$B29=0,Working!$O29,Working!$N29) -> 0.08766167497 | N24: = | O24: =IF(Working!$B39=0,Working!$O39,Working!$N39) -> 0.5123089993
A25: =CONCATENATE(Working!A10,")") -> 8) | C25: =IF(Working!B10=0,Working!$S10,Working!$U10) -> 16cos58° | E25: =CONCATENATE(Working!A20,")") -> 18) | G25: =IF(Working!$B20=0,Working!$S20,Working!$U20) -> 14tan71° | I25: =CONCATENATE(Working!A30,")") -> 28) | K25: =IF(Working!$B30=0,Working!$S30,Working!$U30) -> 13tan15° | M25: =CONCATENATE(Working!A40,")") -> 38) | O25: =IF(Working!$B40=0,Working!$S40,Working!$U40) -> 8tan16°
C26: =IF(Working!B10=0,Working!$T10,Working!$V10) ->  | G26: =IF(Working!$B20=0,Working!$T20,Working!$V20) ->  | K26: =IF(Working!$B30=0,Working!$T30,Working!$V30) -> 12 | O26: =IF(Working!$B40=0,Working!$T40,Working!$V40) -> 3
B27: = | C27: =IF(Working!B10=0,Working!$O10,Working!$N10) -> 0.5244813319 | F27: = | G27: =IF(Working!$B20=0,Working!$O20,Working!$N20) -> 3.041517279 | J27: = | K27: =IF(Working!$B30=0,Working!$O30,Working!$N30) -> 0.02290167292 | N27: = | O27: =IF(Working!$B40=0,Working!$O40,Working!$N40) -> 0.09621172292
A28: =CONCATENATE(Working!A11,")") -> 9) | C28: =IF(Working!B11=0,Working!$S11,Working!$U11) -> 10cos43° | E28: =CONCATENATE(Working!A21,")") -> 19) | G28: =IF(Working!$B21=0,Working!$S21,Working!$U21) -> 11cos28° | I28: =CONCATENATE(Working!A31,")") -> 29) | K28: =IF(Working!$B31=0,Working!$S31,Working!$U31) -> 34tan81° | M28: =CONCATENATE(Working!A41,")") -> 39) | O28: =IF(Working!$B41=0,Working!$S41,Working!$U41) -> 14tan83°
C29: =IF(Working!B11=0,Working!$T11,Working!$V11) ->  | G29: =IF(Working!$B21=0,Working!$T21,Working!$V21) ->  | K29: =IF(Working!$B31=0,Working!$T31,Working!$V31) -> 10 | O29: =IF(Working!$B41=0,Working!$T41,Working!$V41) -> 19
B30: = | C30: =IF(Working!B11=0,Working!$O11,Working!$N11) -> 0.7273736416 | F30: = | G30: =IF(Working!$B21=0,Working!$O21,Working!$N21) -> 0.8789558753 | J30: = | K30: =IF(Working!$B31=0,Working!$O31,Working!$N31) -> 0.6982678136 | N30: = | O30: =IF(Working!$B41=0,Working!$O41,Working!$N41) -> 0.4818707145
A31: =CONCATENATE(Working!A12,")") -> 10) | C31: =IF(Working!B12=0,Working!$S12,Working!$U12) -> 13cos31° | E31: =CONCATENATE(Working!A22,")") -> 20) | G31: =IF(Working!$B22=0,Working!$S22,Working!$U22) -> 9cos80° | I31: =CONCATENATE(Working!A32,")") -> 30) | K31: =IF(Working!$B32=0,Working!$S32,Working!$U32) -> 12tan46° | M31: =CONCATENATE(Working!A42,")") -> 40) | O31: =IF(Working!$B42=0,Working!$S42,Working!$U42) -> 3tan38°
C32: =IF(Working!B12=0,Working!$T12,Working!$V12) ->  | G32: =IF(Working!$B22=0,Working!$T22,Working!$V22) ->  | K32: =IF(Working!$B32=0,Working!$T32,Working!$V32) -> 13 | O32: =IF(Working!$B42=0,Working!$T42,Working!$V42) -> 16
B33: = | C33: =IF(Working!B12=0,Working!$O12,Working!$N12) -> 0.8483562472 | F33: = | G33: =IF(Working!$B22=0,Working!$O22,Working!$N22) -> 0.1621779231 | J33: = | K33: =IF(Working!$B42=0,Working!$O42,Working!$N42) -> 0.04965540493 | N33: = | O33: =IF(Working!$B42=0,Working!$O42,Working!$N42) -> 0.04965540493

Sheet Working (hidden)
A1: =INT(900*RAND()+100) -> 554 | D1: =TEXT(1,A1) -> 554 | E1: TRI- | Q1: ab/cd | S1: Multiplication | V1: Division
E2: Ratio | G2: Angle | J2: DMS | K2: Radians | L2: Constants | N2: Division | O2: Multiplication | S2: ab | T2: cd | U2: ab | V2: cd
A3: 1 | B3: 0 | C3: D | D3: =CHAR(INT(26*RAND()+97)) -> c | E3: =INT(3*RAND()) -> 0 | F3: =IF(E3=0,"sin",IF(E3=1,"cos","tan")) -> sin | G3: =INT(80*RAND()+10) -> 15 | H3: =INT(59*RAND()+1) -> 45 | I3: =IF(C3="M",G3,G3+H3/60) -> 15.75 | J3: =IF(C3="D",CONCATENATE(G3,"°"),CONCATENATE(G3,"°",H3,"'")) -> 15° | K3: =I3*PI()/180 -> 0.2748893572 | L3: =INT(18*RAND()+2) -> 3 | M3: =IF(A3<21,"1",INT(18*RAND()+2)) -> 1 | N3: =IF(E3=0,L3/(M3*SIN(K3)),IF(E3=1,L3/(M3*COS(K3)),L3/(M3*TAN(K3)))) -> 11.05214791 | O3: =IF(E3=0,L3*SIN(K3)/M3,IF(E3=1,L3*COS(K3)/M3,L3*TAN(K3)/M3)) -> 0.8143213496 | P3: =ROUND(N3,3) -> 11.052 | Q3: =ROUND(O3,3) -> 0.814 | S3: =CONCATENATE(L3,F3,J3) -> 3sin15° | T3: =IF(A3<21,"",M3) ->  | U3: =L3 -> 3 | V3: =IF(A3<21,CONCATENATE(F3,J3),CONCATENATE(M3,F3,J3)) -> sin15°
A4: 2 | B4: 0 | C4: D | D4: =CHAR(INT(26*RAND()+97)) -> p | E4: =INT(3*RAND()) -> 2 | F4: tan | G4: =INT(80*RAND()+10) -> 28 | H4: =INT(59*RAND()+1) -> 14 | I4: 28.23333333 | J4: =IF(C4="D",CONCATENATE(G4,"°"),CONCATENATE(G4,"°",H4,"'")) -> 28° | K4: =I4*PI()/180 -> 0.4927646255 | L4: 14 | M4: =IF(A4<21,"1",INT(18*RAND()+2)) -> 1 | N4: =IF(E4=0,1/SIN(K4),IF(E4=1,1/COS(K4),1/TAN(K4))) -> 1.862389633 | O4: =IF(E4=0,1*SIN(K4),IF(E4=1,1*COS(K4),1*TAN(K4))) -> 0.5369445696 | P4: =ROUND(N4,3) -> 1.862 | Q4: =ROUND(O4,3) -> 0.537 | S4: =CONCATENATE(L4,F4,J4) -> 14tan28° | T4: =IF(A4<21,"",M4) ->  | U4: =L4 -> 14 | V4: =IF(A4<21,CONCATENATE(F4,J4),CONCATENATE(M4,F4,J4)) -> tan28°
A5: 3 | B5: 0 | C5: D | D5: f | E5: 2 | F5: tan | G5: =INT(80*RAND()+10) -> 33 | H5: 54 | I5: 33.9 | J5: 33° | K5: 0.5916666164 | L5: 15 | M5: 1 | N5: 1.488156995 | O5: 0.6719721129 | P5: 1.488 | Q5: 0.672 | S5: 15tan33° | U5: 15 | V5: tan33°
A6: 4 | B6: 0 | C6: D | D6: i | E6: 0 | F6: sin | G6: 57 | H6: 35 | I6: 57.58333333 | J6: 57° | K6: 1.005018761 | L6: 17 | M6: 1 | N6: 1.18459268 | O6: 0.8441720241 | P6: 1.185 | Q6: 0.844 | S6: 17sin57° | U6: 17 | V6: sin57°
A7: 5 | B7: 0 | C7: D | D7: g | E7: 2 | F7: tan | G7: 57 | H7: 46 | I7: 57.76666667 | J7: 57° | K7: 1.008218531 | L7: 4 | M7: 1 | N7: 0.6305463947 | O7: 1.585926124 | P7: 0.631 | Q7: 1.586 | S7: 4tan57° | U7: 4 | V7: tan57°
A8: 6 | B8: 0 | C8: D | D8: n | E8: 0 | F8: sin | G8: 24 | H8: 53 | I8: 24.88333333 | J8: 24° | K8: 0.4342960955 | L8: 9 | M8: 1 | N8: 2.376584292 | O8: 0.4207719471 | P8: 2.377 | Q8: 0.421 | S8: 9sin24° | U8: 9 | V8: sin24°
A9: 7 | B9: 0 | C9: D | D9: d | E9: 0 | F9: sin | G9: 51 | H9: 33 | I9: 51.55 | J9: 51° | K9: 0.8997172294 | L9: 11 | M9: 1 | N9: 1.27689279 | O9: 0.7831511053 | P9: 1.277 | Q9: 0.783 | S9: 11sin51° | U9: 11 | V9: sin51°
A10: 8 | B10: 0 | C10: D | D10: b | E10: 1 | F10: cos | G10: 58 | H10: 22 | I10: 58.36666667 | J10: 58° | K10: 1.018690507 | L10: 16 | M10: 1 | N10: 1.906645555 | O10: 0.5244813319 | P10: 1.907 | Q10: 0.524 | S10: 16cos58° | U10: 16 | V10: cos58°
A11: 9 | B11: 0 | C11: D | D11: b | E11: 1 | F11: cos | G11: 43 | H11: 20 | I11: 43.33333333 | J11: 43° | K11: 0.7563093425 | L11: 10 | M11: 1 | N11: 1.374809235 | O11: 0.7273736416 | P11: 1.375 | Q11: 0.727 | S11: 10cos43° | U11: 10 | V11: cos43°
A12: 10 | B12: 0 | C12: D | D12: a | E12: 1 | F12: cos | G12: 31 | H12: 58 | I12: 31.96666667 | J12: 31° | K12: 0.5579235842 | L12: 13 | M12: 1 | N12: 1.178750087 | O12: 0.8483562472 | P12: 1.179 | Q12: 0.848 | S12: 13cos31° | U12: 13 | V12: cos31°
A13: 11 | B13: 0 | C13: D | D13: z | E13: 1 | F13: cos | G13: 26 | H13: 30 | I13: 26.5 | J13: 26° | K13: 0.4625122518 | L13: 7 | M13: 1 | N13: =IF(E13=0,L13/SIN(K13),IF(E13=1,L13/COS(K13),L13/TAN(K13))) -> 7.821802693 | O13: 0.8949343616 | P13: 7.822 | Q13: 0.895 | S13: 7cos26° | U13: 7 | V13: cos26°
A14: 12 | B14: 0 | C14: D | D14: b | E14: 2 | F14: tan | G14: 37 | H14: 44 | I14: 37.73333333 | J14: 37° | K14: 0.6585709044 | L14: 11 | M14: 1 | N14: 14.21523712 | O14: 0.7738175529 | P14: 14.215 | Q14: 0.774 | S14: 11tan37° | U14: 11 | V14: tan37°
A15: 13 | B15: 0 | C15: D | D15: e | E15: 2 | F15: tan | G15: 69 | H15: 47 | I15: 69.78333333 | J15: 69° | K15: 1.21794893 | L15: 4 | M15: 1 | N15: 1.473034647 | O15: 2.715482632 | P15: 1.473 | Q15: 2.715 | S15: 4tan69° | U15: 4 | V15: tan69°
A16: 14 | B16: 0 | C16: D | D16: v | E16: 1 | F16: cos | G16: 39 | H16: 59 | I16: 39.98333333 | J16: 39° | K16: 0.6978408126 | L16: 17 | M16: 1 | N16: 22.18650948 | O16: 0.76623139 | P16: 22.187 | Q16: 0.766 | S16: 17cos39° | U16: 17 | V16: cos39°
A17: 15 | B17: 0 | C17: D | D17: w | E17: 0 | F17: sin | G17: 31 | H17: 18 | I17: 31.3 | J17: 31° | K17: 0.5462880559 | L17: 17 | M17: 1 | N17: 32.72256903 | O17: 0.5195191119 | P17: 32.723 | Q17: 0.52 | S17: 17sin31° | U17: 17 | V17: sin31°
A18: 16 | B18: 0 | C18: D | D18: y | E18: 0 | F18: sin | G18: 11 | H18: 37 | I18: 11.61666667 | J18: 11° | K18: 0.2027490814 | L18: 11 | M18: 1 | N18: 54.62775025 | O18: 0.2013628595 | P18: 54.628 | Q18: 0.201 | S18: 11sin11° | U18: 11 | V18: sin11°
A19: 17 | B19: 0 | C19: D | D19: h | E19: 0 | F19: sin | G19: 43 | H19: 10 | I19: 43.16666667 | J19: 43° | K19: 0.7534004604 | L19: 13 | M19: 1 | N19: 19.00243381 | O19: 0.6841228933 | P19: 19.002 | Q19: 0.684 | S19: 13sin43° | U19: 13 | V19: sin43°
A20: 18 | B20: 0 | C20: D | D20: u | E20: 2 | F20: tan | G20: 71 | H20: 48 | I20: 71.8 | J20: 71° | K20: 1.253146403 | L20: 14 | M20: 1 | N20: 4.602965795 | O20: 3.041517279 | P20: 4.603 | Q20: 3.042 | S20: 14tan71° | U20: 14 | V20: tan71°
A21: 19 | B21: 0 | C21: D | D21: d | E21: 1 | F21: cos | G21: 28 | H21: 29 | I21: 28.48333333 | J21: 28° | K21: 0.4971279486 | L21: 11 | M21: 1 | N21: 12.51484893 | O21: 0.8789558753 | P21: 12.515 | Q21: 0.879 | S21: 11cos28° | U21: 11 | V21: cos28°
A22: 20 | B22: 0 | C22: D | D22: d | E22: 1 | F22: cos | G22: 80 | H22: 40 | I22: 80.66666667 | J22: 80° | K22: 1.40789893 | L22: 9 | M22: 1 | N22: 55.49460634 | O22: 0.1621779231 | P22: 55.495 | Q22: 0.162 | S22: 9cos80° | U22: 9 | V22: cos80°
A23: 21 | B23: 0 | C23: D | D23: o | E23: 1 | F23: cos | G23: 66 | H23: 57 | I23: 66.95 | J23: 66° | K23: 1.168497934 | L23: =INT(38*RAND()+2) -> 34 | M23: 2 | N23: =IF(E23=0,L23/SIN(K23)/M23,IF(E23=1,L23/COS(K23)/M23,L23/TAN(K23)/M23)) -> 43.41893222 | O23: =IF(E23=0,1*SIN(K23)/M23,IF(E23=1,1*COS(K23)/M23,1*TAN(K23)/M23)) -> 0.1957671358 | P23: 43.419 | Q23: 0.196 | S23: 34cos66° | T23: 2 | U23: 34 | V23: 2cos66°
A24: 22 | B24: 0 | C24: D | D24: z | E24: 1 | F24: cos | G24: 81 | H24: 49 | I24: 81.81666667 | J24: 81° | K24: 1.427970216 | L24: =INT(38*RAND()+2) -> 6 | M24: 13 | N24: =IF(E24=0,L24/SIN(K24)/M24,IF(E24=1,L24/COS(K24)/M24,L24/TAN(K24)/M24)) -> 3.24248402 | O24: =IF(E24=0,1*SIN(K24)/M24,IF(E24=1,1*COS(K24)/M24,1*TAN(K24)/M24)) -> 0.01094930873 | P24: 3.242 | Q24: 0.011 | S24: 6cos81° | T24: 13 | U24: 6 | V24: 13cos81°
A25: 23 | B25: 0 | C25: D | D25: c | E25: 0 | F25: sin | G25: 79 | H25: 55 | I25: 79.91666667 | J25: 79° | K25: 1.394808961 | L25: 10 | M25: 10 | N25: 1.015688167 | O25: 0.09845541504 | P25: 1.016 | Q25: 0.098 | S25: 10sin79° | T25: 10 | U25: 10 | V25: 10sin79°
A26: 24 | B26: 0 | C26: D | D26: l | E26: 2 | F26: tan | G26: 77 | H26: 26 | I26: 77.43333333 | J26: 77° | K26: 1.351466617 | L26: 11 | M26: 10 | N26: 0.2452072897 | O26: 0.4486000401 | P26: 0.245 | Q26: 0.449 | S26: 11tan77° | T26: 10 | U26: 11 | V26: 10tan77°
A27: 25 | B27: 0 | C27: D | D27: q | E27: 2 | F27: tan | G27: 35 | H27: 55 | I27: 35.91666667 | J27: 35° | K27: 0.6268640897 | L27: 19 | M27: 15 | N27: 1.748760179 | O27: 0.04828817893 | P27: 1.749 | Q27: 0.048 | S27: 19tan35° | T27: 15 | U27: 19 | V27: 15tan35°
A28: 26 | B28: 0 | C28: D | D28: b | E28: 1 | F28: cos | G28: 69 | H28: 58 | I28: 69.96666667 | J28: 69° | K28: 1.2211487 | L28: 34 | M28: 7 | N28: 14.17867462 | O28: 0.04893811092 | P28: 14.179 | Q28: 0.049 | S28: 34cos69° | T28: 7 | U28: 34 | V28: 7cos69°
A29: 27 | B29: 0 | C29: D | D29: y | E29: 2 | F29: tan | G29: 46 | H29: 27 | I29: 46.45 | J29: 46° | K29: 0.8107054376 | L29: 6 | M29: 12 | N29: 0.4753122352 | O29: 0.08766167497 | P29: 0.475 | Q29: 0.088 | S29: 6tan46° | T29: 12 | U29: 6 | V29: 12tan46°
A30: 28 | B30: 0 | C30: D | D30: p | E30: 2 | F30: tan | G30: 15 | H30: 22 | I30: 15.36666667 | J30: 15° | K30: 0.2681989284 | L30: 13 | M30: 12 | N30: 3.941973065 | O30: 0.02290167292 | P30: 3.942 | Q30: 0.023 | S30: 13tan15° | T30: 12 | U30: 13 | V30: 12tan15°
A31: 29 | B31: 0 | C31: D | D31: l | E31: 2 | F31: tan | G31: 81 | H31: 51 | I31: 81.85 | J31: 81° | K31: 1.428551993 | L31: 34 | M31: 10 | N31: 0.4869191926 | O31: 0.6982678136 | P31: 0.487 | Q31: 0.698 | S31: 34tan81° | T31: 10 | U31: 34 | V31: 10tan81°
A32: 30 | B32: 0 | C32: D | D32: a | E32: 2 | F32: tan | G32: 46 | H32: 39 | I32: 46.65 | J32: 46° | K32: 0.8141960961 | L32: 12 | M32: 13 | N32: 0.8713858157 | O32: 0.08148619806 | P32: 0.871 | Q32: 0.081 | S32: 12tan46° | T32: 13 | U32: 12 | V32: 13tan46°
A33: 31 | B33: 0 | C33: D | D33: k | E33: 2 | F33: tan | G33: 10 | H33: 43 | I33: 10.71666667 | J33: 10° | K33: 0.1870411182 | L33: 24 | M33: 4 | N33: 31.70355035 | O33: 0.04731331297 | P33: 31.704 | Q33: 0.047 | S33: 24tan10° | T33: 4 | U33: 24 | V33: 4tan10°
A34: 32 | B34: 0 | C34: D | D34: f | E34: 0 | F34: sin | G34: 10 | H34: 34 | I34: 10.56666667 | J34: 10° | K34: 0.1844231243 | L34: 29 | M34: 16 | N34: 9.883876265 | O34: 0.01146121693 | P34: 9.884 | Q34: 0.011 | S34: 29sin10° | T34: 16 | U34: 29 | V34: 16sin10°
A35: 33 | B35: 0 | C35: D | D35: s | E35: 0 | F35: sin | G35: 40 | H35: 14 | I35: 40.23333333 | J35: 40° | K35: 0.7022041357 | L35: 38 | M35: 11 | N35: 5.348405473 | O35: 0.05871835791 | P35: 5.348 | Q35: 0.059 | S35: 38sin40° | T35: 11 | U35: 38 | V35: 11sin40°
A36: 34 | B36: 0 | C36: D | D36: c | E36: 2 | F36: tan | G36: 51 | H36: 50 | I36: 51.83333333 | J36: 51° | K36: 0.904662329 | L36: 27 | M36: 10 | N36: 2.122148147 | O36: 0.1272295718 | P36: 2.122 | Q36: 0.127 | S36: 27tan51° | T36: 10 | U36: 27 | V36: 10tan51°
A37: 35 | B37: 0 | C37: D | D37: p | E37: 2 | F37: tan | G37: 47 | H37: 2 | I37: 47.03333333 | J37: 47° | K37: 0.8208865249 | L37: 39 | M37: 17 | N37: 2.136805402 | O37: 0.06315413503 | P37: 2.137 | Q37: 0.063 | S37: 39tan47° | T37: 17 | U37: 39 | V37: 17tan47°
A38: 36 | B38: 0 | C38: D | D38: x | E38: 0 | F38: sin | G38: 47 | H38: 53 | I38: 47.88333333 | J38: 47° | K38: 0.8357218235 | L38: 37 | M38: 5 | N38: 9.975993037 | O38: 0.1483561581 | P38: 9.976 | Q38: 0.148 | S38: 37sin47° | T38: 5 | U38: 37 | V38: 5sin47°
A39: 37 | B39: 0 | C39: D | D39: n | E39: 2 | F39: tan | G39: 56 | H39: 57 | I39: 56.95 | J39: 56° | K39: 0.993965009 | L39: 32 | M39: 3 | N39: 6.940255901 | O39: 0.5123089993 | P39: 6.94 | Q39: 0.512 | S39: 32tan56° | T39: 3 | U39: 32 | V39: 3tan56°
A40: 38 | B40: 0 | C40: D | D40: z | E40: 2 | F40: tan | G40: 16 | H40: 6 | I40: 16.1 | J40: 16° | K40: 0.2809980096 | L40: 8 | M40: 3 | N40: 9.238883391 | O40: 0.09621172292 | P40: 9.239 | Q40: 0.096 | S40: 8tan16° | T40: 3 | U40: 8 | V40: 3tan16°
A41: 39 | B41: 0 | C41: D | D41: x | E41: 2 | F41: tan | G41: 83 | H41: 46 | I41: 83.76666667 | J41: 83° | K41: 1.462004137 | L41: 14 | M41: 19 | N41: 0.08048043234 | O41: 0.4818707145 | P41: 0.08 | Q41: 0.482 | S41: 14tan83° | T41: 19 | U41: 14 | V41: 19tan83°
A42: 40 | B42: 0 | C42: D | D42: r | E42: 2 | F42: tan | G42: =INT(80*RAND()+10) -> 38 | H42: 28 | I42: 38.46666667 | J42: 38° | K42: 0.6713699856 | L42: 3 | M42: 16 | N42: 0.236001499 | O42: 0.04965540493 | P42: 0.236 | Q42: 0.05 | S42: 3tan38° | T42: 16 | U42: 3 | V42: 16tan38°
